bitfinex-derivatives/quotes_SOLF0:USTF0_20250613
["timestamp","ask_amount","ask_price","bid_price","bid_amount"]
[1749815256093,4.98871182,145.07,145.05,6.888]
[1749815256289,6.8905,145.06,145.05,6.888]
[1749815256493,6.8905,145.06,145.04,6.93837077]
[1749815258201,0.0466061,145.07,145.04,6.93837077]
[1749815258399,37.6077,145.13,145.06,4.98417201]
[1749815258703,6.888,145.12,145.09,6.889]
[1749815259000,35.24,145.13,145.08,11.87217201]
[1749815259402,35.24,145.13,145.09,0.04513907]
[1749815259600,0.04942066,145.12,145.09,0.04513907]
[1749815260203,6.93742066,145.12,145.09,6.93393907]
[1749815261404,6.8883,145.11,145.09,0.04513907]
[1749815261708,0.04942066,145.12,145.09,0.04513907]
[1749815262108,6.93732066,145.12,145.09,6.93393907]
[1749815262409,0.04942066,145.12,145.09,0.04513907]
[1749815262611,6.93722066,145.12,145.09,6.93403907]
[1749815262810,6.93722066,145.12,145.09,0.04513907]
[1749815263013,0.04942066,145.12,145.1,4.98417201]
[1749815263206,0.04942066,145.12,145.1,11.87237201]
[1749815263510,0.04942066,145.12,145.1,4.98417201]
[1749815263808,0.04942066,145.12,145.11,6.8881]
[1749815267217,35.24,145.18,145.1,11.87217201]
[1749815267399,35.24,145.18,145.12,4.98417201]
[1749815267603,6.8857,145.16,145.12,4.98417201]
[1749815267907,35.24,145.18,145.12,11.87217201]
[1749815268108,0.05123162,145.16,145.14,5.03144213]
[1749815268308,0.05123162,145.16,145.15,6.8859]
[1749815269206,0.05123162,145.16,145.14,0.04727012]
[1749815269916,6.93723162,145.16,145.14,0.04727012]
[1749815272723,0.05123162,145.16,145.14,6.93387012]
[1749815273618,6.93693162,145.16,145.14,6.93387012]
[1749815274016,6.93693162,145.16,145.14,0.04727012]
[1749815274411,0.05123162,145.16,145.14,0.04727012]
[1749815274806,0.05123162,145.16,145.14,6.93367012]
[1749815275118,0.05123162,145.16,145.14,0.04727012]
[1749815275813,6.8862,145.15,145.14,0.04727012]
[1749815278122,6.93713162,145.16,145.14,0.04727012]
[1749815278620,6.8862,145.15,145.14,0.04727012]
[1749815278824,12.76328306,145.15,145.14,0.04727012]
[1749815279128,6.8862,145.15,145.14,0.04727012]
[1749815279420,12.76438378,145.15,145.14,0.04727012]
[1749815280917,6.8862,145.15,145.14,0.04727012]
[1749815282321,12.76510004,145.15,145.14,0.04727012]
[1749815282511,6.8876,145.13,145.09,35.24]
[1749815283111,6.8876,145.13,145.1,6.8883]
[1749815283318,6.8876,145.13,145.09,35.24]
[1749815283524,0.04968989,145.12,145.1,0.04382818]
[1749815283716,0.04968989,145.12,145.1,6.93202818]
[1749815284318,0.04968989,145.12,145.11,6.8881]
[1749815285519,6.93728989,145.12,145.1,6.93212818]
[1749815286722,0.04968989,145.12,145.1,6.93212818]
[1749815287124,6.93728989,145.12,145.1,6.93212818]
[1749815287423,0.04968989,145.12,145.1,0.04382818]
[1749815287828,6.8881,145.11,145.1,0.04382818]
[1749815288024,0.04968989,145.12,145.1,0.04382818]
[1749815288218,0.04968989,145.12,145.11,6.8881]
[1749815291523,6.8859,145.16,145.1,5.02650331]
[1749815291725,5.87560511,145.15,145.12,4.98267513]
[1749815291923,6.8859,145.16,145.12,4.98267513]
[1749815292124,5.87554014,145.15,145.13,6.8868]
[1749815292323,6.8864,145.15,145.13,6.8868]
[1749815292535,6.9357047,145.15,145.13,6.9360853]
[1749815292721,0.0493047,145.15,145.13,6.9360853]
[1749815293927,6.9355047,145.15,145.13,6.9360853]
[1749815294329,0.0493047,145.15,145.13,6.9360853]
[1749815294834,6.9355047,145.15,145.13,6.9360853]
[1749815295721,0.0493047,145.15,145.13,6.9360853]
[1749815296630,0.0493047,145.15,145.14,6.8866]
[1749815296933,0.0493047,145.15,145.13,0.0492853]
[1749815297134,0.0493047,145.15,145.13,6.9361853]
[1749815297534,0.0493047,145.15,145.13,0.0492853]
[1749815298030,6.8866,145.14,145.13,0.0492853]
[1749815298237,12.76507964,145.14,145.13,0.0492853]
[1749815301230,6.8866,145.14,145.13,0.0492853]
[1749815301428,12.77577941,145.14,145.13,0.0492853]
[1749815301633,6.8866,145.14,145.13,0.0492853]
[1749815302332,5.89314675,145.14,145.13,0.0492853]
[1749815302523,5.89314675,145.14,145.13,6.9363853]
[1749815302725,0.0493047,145.15,145.13,0.0492853]
[1749815303341,0.0493047,145.15,145.14,6.8866]
[1749815303529,5.94734027,145.15,145.14,6.8866]
[1749815303845,12.83354027,145.15,145.13,6.9361853]
[1749815304034,0.0493047,145.15,145.13,6.9361853]
[1749815304533,0.0493047,145.15,145.14,6.8866]
[1749815304743,5.94803685,145.15,145.14,6.8866]
[1749815307137,5.94803685,145.15,145.13,6.9360853]
[1749815307337,0.0493047,145.15,145.13,0.0492853]
[1749815307729,0.0493047,145.15,145.14,6.8866]
[1749815307937,5.95890964,145.15,145.14,6.8866]
[1749815311440,5.95890964,145.15,145.13,0.0492853]
[1749815311742,12.79650855,145.14,145.13,0.0492853]
[1749815313639,5.90990855,145.14,145.13,0.0492853]
[1749815314137,5.90990855,145.14,145.13,6.9363853]
[1749815314339,5.90990855,145.14,145.13,0.0492853]
[1749815315341,5.90990855,145.14,145.13,6.9363853]
[1749815315548,0.0493047,145.15,145.13,0.0492853]
[1749815316345,0.0493047,145.15,145.14,6.8866]
[1749815316541,5.95863211,145.15,145.14,6.8866]
[1749815318358,0.0493047,145.15,145.14,6.8866]
[1749815320052,5.95809269,145.15,145.14,6.8866]
[1749815320653,5.95809269,145.15,145.13,0.0492853]
[1749815320858,5.90878799,145.14,145.13,0.0492853]
[1749815321055,12.79538799,145.14,145.13,0.0492853]
[1749815321260,20.0071992,145.14,145.07,44.55136287]
[1749815321457,5.90878799,145.13,145.07,44.55136287]
[1749815321656,11.40514313,145.14,145.07,44.55136287]
[1749815321657,6.8884,145.11,145.08,6.8892]
[1749815322258,6.93470782,145.11,145.08,6.93564991]
[1749815323660,5.90174399,145.1,145.08,6.93564991]
[1749815323863,6.93470782,145.11,145.08,6.93564991]
[1749815326566,0.04630782,145.11,145.08,6.93564991]
[1749815327065,6.93460782,145.11,145.08,6.93564991]
[1749815328667,6.93460782,145.11,145.09,6.8889]
[1749815329068,6.93460782,145.11,145.08,0.04644991]
[1749815329978,6.93460782,145.11,145.09,6.8888]
[1749815331366,6.93460782,145.11,145.08,0.04644991]
[1749815331767,0.04630782,145.11,145.08,0.04644991]
[1749815331962,5.89114754,145.1,145.08,0.04644991]
[1749815332164,12.78038641,145.09,145.08,0.04644991]
[1749815332470,6.889,145.09,145.08,0.04644991]
[1749815332663,12.77862335,145.09,145.08,0.04644991]
[1749815332867,0.04630782,145.11,145.08,0.04644991]
[1749815333369,0.04630782,145.11,145.09,6.8888]
[1749815333969,0.04630782,145.11,145.1,6.8885]
[1749815341069,6.8863,145.15,145.12,6.8872]
[1749815341269,5.91289166,145.14,145.1,4.98203398]
[1749815341569,35.16,145.16,145.1,4.98203398]
[1749815341776,6.887,145.14,145.11,6.8878]
[1749815342281,6.93477146,145.14,145.11,6.93852511]
[1749815348779,0.04777146,145.14,145.12,6.8875]
[1749815353076,6.93477146,145.14,145.11,6.93852511]
[1749815354276,6.93477146,145.14,145.12,6.8875]
[1749815355287,6.93477146,145.14,145.11,6.93862511]
[1749815355478,5.9225757,145.13,145.11,0.05072511]
[1749815355787,6.93477146,145.14,145.12,6.8876]
[1749815355986,5.92294299,145.13,145.12,6.8876]
[1749815357489,0.04777146,145.14,145.12,6.8876]
[1749815358191,0.04777146,145.14,145.13,6.8871]
[1749815358780,0.04777146,145.14,145.12,6.8873]
[1749815358981,6.93447146,145.14,145.12,6.8873]
[1749815359186,0.04777146,145.14,145.12,6.8873]
[1749815360690,0.04777146,145.14,145.13,6.8871]
[1749815361580,5.97032976,145.14,145.13,6.8871]
[1749815365385,5.97032976,145.14,145.11,0.05072511]
[1749815365591,5.93554646,145.13,145.11,0.05072511]
[1749815365791,5.93554646,145.12,145.11,0.05072511]
[1749815365992,12.82314646,145.12,145.11,0.05072511]
[1749815366487,5.93554646,145.12,145.11,6.93872511]
[1749815366690,0.04777146,145.14,145.11,0.05072511]
[1749815366990,5.93577144,145.13,145.11,0.05072511]
[1749815367189,6.8874,145.13,145.11,0.05072511]
[1749815367677,6.8876,145.12,145.11,0.05072511]
[1749815367883,12.82384733,145.12,145.11,0.05072511]
[1749815369291,5.93624733,145.12,145.11,0.05072511]
[1749815371292,6.8872,145.13,145.11,0.05072511]
[1749815371988,0.04777146,145.14,145.11,5.03295793]
[1749815372388,0.04777146,145.14,145.13,4.98223282]
[1749815372991,0.04777146,145.14,145.13,11.86933282]
[1749815374795,0.04777146,145.14,145.13,46.92933282]
[1749815375193,0.04777146,145.14,145.13,46.92599316]
[1749815385807,0.04777146,145.14,145.13,41.9471]
[1749815386002,0.04777146,145.14,145.13,6.8871]
[1749815389313,0.04777146,145.14,145.11,0.05072511]
[1749815389517,0.04777146,145.14,145.03,410.4829]
[1749815389518,17.36306043,145.13,145.04,35.06]
[1749815389821,4.98211899,145.09,145.02,4.98211899]
[1749815390016,6.8903,145.07,145.02,4.98211899]
[1749815390418,0.04714318,145.06,145.03,6.94419091]
[1749815390914,0.04714318,145.06,145.03,0.05259091]
[1749815391317,5.94075417,145.05,145.03,0.05259091]
[1749815391512,0.04714318,145.06,145.03,0.05259091]
[1749815391718,10.9172314,145.05,144.99,6.8933]
[1749815392019,5.93511241,145.04,144.99,6.8933]
[1749815392210,4.98211899,145.05,145.0,6.8932]
[1749815392414,5.93548254,145.04,145.0,6.8932]
[1749815392612,4.98211899,145.05,145.0,6.8932]
[1749815392820,5.97707834,145.04,145.01,0.0438765]
[1749815393120,0.04813943,145.04,145.01,0.0438765]
[1749815393318,6.8922,145.03,145.01,0.0438765]
[1749815394118,6.8923,145.02,145.01,0.0438765]
[1749815394518,6.8945,144.98,144.9,35.08]
[1749815394715,6.8945,144.98,144.92,11.87011899]
[1749815395121,40.06211899,145.0,144.92,11.87011899]
[1749815395318,40.06211899,145.0,144.94,6.888]
[1749815395515,0.04541081,144.98,144.96,0.04498085]
[1749815396318,6.8951,144.97,144.96,0.04498085]
[1749815400426,5.0275298,144.98,144.89,7.33611899]
[1749815400632,4.98211899,144.98,144.89,8.53678142]
[1749815400830,40.06211899,145.0,144.94,6.8958]
[1749815401033,4.98211899,144.98,144.92,4.98211899]
[1749815401235,4.98211899,144.96,144.9,42.40601899]
[1749815401433,0.05111259,144.94,144.92,6.94017125]
[1749815401834,0.05111259,144.94,144.92,11.92229024]
[1749815402039,0.05111259,144.94,144.93,6.8966]
[1749815404242,0.05111259,144.94,144.93,13.7846]
[1749815404435,40.06211899,145.0,144.93,6.888]
[1749815404643,40.06211899,145.0,144.94,4.98211899]
[1749815405040,6.8945,144.98,144.94,11.87781899]
[1749815405437,0.05220255,144.97,144.95,0.05262982]
[1749815405633,0.05220255,144.97,144.95,6.94812982]
[1749815405832,0.05220255,144.97,144.95,0.05262982]
[1749815406237,0.05220255,144.97,144.96,6.8952]
[1749815407535,0.05220255,144.97,144.96,13.7832]
[1749815409840,0.05220255,144.97,144.96,6.888]
[1749815410743,0.05220255,144.97,144.96,13.7832]
[1749815412037,0.05220255,144.97,144.96,6.888]
[1749815412741,0.05220255,144.97,144.95,11.92994881]
[1749815412742,0.05220255,144.97,144.95,0.05262982]
[1749815413446,6.8952,144.96,144.95,0.05262982]
[1749815417348,6.94700255,144.97,144.95,0.05262982]
[1749815417548,0.05220255,144.97,144.95,0.05262982]
[1749815418052,4.98211899,144.96,144.89,4.98211899]
[1749815418441,6.8966,144.93,144.89,4.98211899]
[1749815419150,0.05252611,144.92,144.9,6.94242306]
[1749815419347,6.94972611,144.92,144.9,0.04472306]
[1749815419751,0.05252611,144.92,144.9,6.94262306]
[1749815421045,6.94982611,144.92,144.9,0.04472306]
[1749815421251,2.9699479,144.91,144.9,0.04472306]
[1749815421456,2.96991268,144.91,144.9,0.04472306]
[1749815421759,9.86741268,144.91,144.9,0.04472306]
[1749815421944,6.8975,144.91,144.9,0.04472306]
[1749815422251,9.86738894,144.91,144.9,0.04472306]
[1749815422447,9.86725416,144.91,144.9,0.04472306]
[1749815422649,6.8975,144.91,144.9,0.04472306]
[1749815422848,9.86725416,144.91,144.9,0.04472306]
[1749815423250,9.86725228,144.91,144.9,0.04472306]
[1749815423759,9.86707918,144.91,144.9,0.04472306]
[1749815423955,14.77227659,144.91,144.9,0.04472306]
[1749815424149,11.80271152,144.91,144.9,0.04472306]
[1749815424458,9.86733049,144.91,144.9,0.04472306]
[1749815424755,9.86739168,144.91,144.9,0.04472306]
[1749815424951,6.8975,144.91,144.9,0.04472306]
[1749815425145,9.86739168,144.91,144.9,0.04472306]
[1749815425345,6.8975,144.91,144.9,0.04472306]
[1749815425746,9.86741208,144.91,144.9,0.04472306]
[1749815425951,6.8975,144.91,144.9,0.04472306]
[1749815426345,9.86741208,144.91,144.9,0.04472306]
[1749815427251,6.8975,144.91,144.9,0.04472306]
[1749815429059,0.05252611,144.92,144.9,0.04472306]
[1749815430450,0.05252611,144.92,144.9,6.94252306]
[1749815431047,0.05252611,144.92,144.91,11.89401001]
[1749815431655,0.05252611,144.92,144.9,0.04472306]
[1749815432162,6.94992611,144.92,144.9,0.04472306]
[1749815433064,6.94992611,144.92,144.9,6.94272306]
[1749815433265,6.94992611,144.92,144.9,0.04472306]
[1749815434066,6.8975,144.91,144.9,0.04472306]
[1749815434862,6.94972611,144.92,144.9,0.04472306]
[1749815435964,5.90974678,144.91,144.9,0.04472306]
[1749815436157,0.05252611,144.92,144.9,6.94272306]
[1749815436358,0.05252611,144.92,144.9,0.04472306]
[1749815436957,6.94972611,144.92,144.9,0.04472306]
[1749815437163,5.91364184,144.91,144.9,0.04472306]
[1749815438265,0.05252611,144.92,144.9,0.04472306]
[1749815438465,0.05252611,144.92,144.91,4.99637166]
[1749815438859,0.05252611,144.92,144.91,11.89387166]
[1749815439061,6.43679194,144.97,144.91,4.99637166]
[1749815439263,5.92023903,144.96,144.91,4.99637166]
[1749815439464,5.92023903,144.95,144.93,6.8962]
[1749815439664,5.92023903,144.94,144.93,6.8962]
[1749815440266,5.92023903,144.94,144.93,11.89257166]
[1749815440563,0.04919278,144.95,144.94,6.8961]
[1749815440768,5.97355091,144.95,144.94,6.8961]
[1749815441160,5.97355091,144.95,144.93,11.89267166]
[1749815441360,0.04919278,144.95,144.93,11.89267166]
[1749815443259,6.94489278,144.95,144.93,11.89267166]
[1749815444177,6.8962,144.94,144.92,6.94761852]
[1749815444366,5.93856304,144.93,144.92,0.05081852]
[1749815444763,12.83516304,144.93,144.92,0.05081852]
[1749815447570,6.8966,144.93,144.92,0.05081852]
[1749815449371,35.08,144.94,144.92,0.05081852]
[1749815450066,41.9764,144.94,144.92,0.05081852]
[1749815450371,6.8964,144.94,144.92,0.05081852]
[1749815450871,6.94499278,144.95,144.92,6.94781852]
[1749815451372,0.04919278,144.95,144.92,0.05081852]
[1749815452474,37.3479,144.97,144.92,0.05081852]
[1749815452475,35.08,145.01,144.93,35.08]
[1749815452774,4.99237519,144.98,144.93,35.08]
[1749815452961,6.8958,144.95,144.93,35.08]
[1749815453161,6.8958,144.95,144.92,6.8967]
[1749815453475,0.04535609,144.95,144.93,6.8965]
[1749815456375,0.04535609,144.95,144.94,6.8961]
[1749815456674,48.09729194,145.03,144.94,40.07176174]
[1749815456881,5.89702227,145.02,144.95,6.888]
[1749815457178,12.79022227,145.01,144.97,4.99176174]
[1749815457372,5.89702227,145.0,144.97,11.88596174]
[1749815457577,5.89695543,144.99,144.97,11.93247936]
[1749815457774,0.0469862,145.0,144.97,11.93247936]
[1749815457969,5.89700827,144.99,144.97,0.04651762]
[1749815458174,0.0469862,145.0,144.97,0.04651762]
[1749815458371,12.78965592,144.99,144.97,0.04651762]
[1749815458575,6.8939,144.99,144.97,0.04651762]
[1749815461787,6.9404862,145.0,144.97,6.94111762]
[1749815462087,0.0469862,145.0,144.97,5.03827936]
[1749815462684,0.0469862,145.0,144.99,11.88546174]
[1749815462889,4.99176174,145.06,144.99,4.99176174]
[1749815463086,5.89714821,145.05,144.99,4.99176174]
[1749815463387,5.89714821,145.04,144.99,4.99176174]
[1749815463588,40.07176174,145.06,144.99,4.99176174]
[1749815463790,6.8917,145.04,145.0,6.8929]
[1749815463986,6.8917,145.04,145.01,0.05083393]
[1749815463987,0.05037717,145.03,145.01,0.05083393]
[1749815464189,0.05037717,145.03,145.02,11.88406174]
[1749815464392,35.08,145.06,145.02,11.88406174]
[1749815464586,35.06,145.09,145.04,4.99176174]
[1749815464793,5.89854147,145.08,145.05,6.8908]
[1749815465090,35.06,145.11,145.06,4.99176174]
[1749815465394,15.75824613,145.1,145.07,0.05138042]
[1749815465593,6.8887,145.1,145.07,0.05138042]
[1749815466194,6.8891,145.09,145.07,0.05138042]
[1749815467992,6.8887,145.1,145.07,0.05138042]
[1749815468195,35.06,145.11,145.07,0.05138042]
[1749815468598,6.8889,145.1,145.07,0.05138042]
[1749815470000,6.8891,145.09,145.07,0.05138042]
[1749815471900,6.8887,145.1,145.07,6.94118042]
[1749815472397,6.8887,145.1,145.07,0.05138042]
[1749815473192,41.9483,145.11,145.07,6.94118042]
[1749815473398,41.9483,145.11,145.07,11.93294216]
[1749815473697,6.8879,145.12,145.07,5.04314216]
[1749815473903,42.23066174,145.16,145.09,4.99176174]
[1749815474095,7.9177111,145.15,145.11,0.04365058]
[1749815474293,9.88395684,145.14,145.11,0.04365058]
[1749815474495,42.23066174,145.16,145.11,0.04365058]
[1749815474700,2.99718507,145.15,145.11,0.04365058]
[1749815474898,42.23066174,145.16,145.11,0.04365058]
[1749815475102,2.99731548,145.15,145.11,0.04365058]
[1749815475302,42.23066174,145.16,145.11,0.04365058]
[1749815475501,6.8874,145.13,145.11,0.04365058]
[1749815476305,6.8876,145.12,145.11,0.04365058]
[1749815478297,42.23066174,145.16,145.11,0.04365058]
[1749815479000,6.8871,145.13,145.11,0.04365058]
[1749815479706,6.8876,145.12,145.11,0.04365058]
[1749815480804,6.8889,145.1,145.06,35.02]
[1749815480999,4.99176174,145.14,145.07,4.99176174]
[1749815481697,0.04452029,145.12,145.09,0.04796772]
[1749815482308,6.8883,145.11,145.09,0.04796772]
[1749815482804,0.04452029,145.12,145.09,0.04796772]
[1749815483003,0.04452029,145.12,145.09,11.92832946]
[1749815483004,6.93232029,145.12,145.09,11.92832946]
[1749815483404,0.04452029,145.12,145.09,5.03972946]
[1749815483602,0.04452029,145.12,145.11,11.87986174]
[1749815485203,4.99176174,145.18,145.12,6.8872]
[1749815485404,4.99176174,145.18,145.11,4.99176174]
[1749815485596,6.886,145.16,145.11,4.99176174]
[1749815485801,6.886,145.16,145.13,6.887]
[1749815486113,6.8862,145.15,145.11,4.99176174]
[1749815486302,6.8862,145.15,145.12,0.04476193]
[1749815486609,4.99176174,145.18,145.12,0.04476193]
[1749815486806,6.8859,145.16,145.12,0.04476193]
[1749815487107,6.8859,145.16,145.13,6.8871]
[1749815488303,35.02,145.19,145.12,0.04476193]
[1749815488508,6.8854,145.17,145.14,6.8866]
[1749815488695,6.8854,145.17,145.14,6.93769312]
[1749815488896,35.02,145.2,145.15,4.99176174]
[1749815489710,6.8845,145.19,145.16,6.8855]
[1749815490611,35.02,145.2,145.16,6.8855]
[1749815490612,41.904,145.2,145.16,6.8855]
[1749815490817,35.02,145.23,145.17,4.99176174]
[1749815491020,35.02,145.23,145.19,0.04842462]
[1749815491721,6.883,145.22,145.19,0.04842462]
[1749815492413,6.8835,145.21,145.19,0.04842462]
[1749815494107,6.8831,145.22,145.19,6.93272462]
[1749815494303,6.8831,145.22,145.19,0.04842462]
[1749815494805,35.02,145.23,145.19,0.04842462]
[1749815494806,6.8834,145.21,145.19,0.04842462]
[1749815495216,6.8832,145.22,145.19,6.93272462]
[1749815495813,6.8826,145.23,145.2,6.8838]
[1749815497620,6.882,145.24,145.19,5.04018636]
[1749815498006,11.74696174,145.27,145.19,5.04018636]
[1749815498210,13.19451076,145.26,145.23,4.99176174]
[1749815498407,34.98,145.28,145.23,5.04054704]
[1749815498612,6.8798,145.29,145.25,6.881]
[1749815498813,7.30789036,145.28,145.26,0.04615701]
[1749815499009,6.8798,145.29,145.26,0.04615701]
[1749815499213,7.30781948,145.28,145.26,0.04615701]
[1749815499413,7.27326174,145.31,145.26,0.04615701]
[1749815499720,8.53061383,145.3,145.26,0.04615701]
[1749815499911,7.30720912,145.29,145.26,0.04615701]
[1749815500115,7.27326174,145.31,145.26,0.04615701]
[1749815500314,6.8803,145.28,145.26,0.04615701]
[1749815501523,6.8805,145.27,145.26,0.04615701]
[1749815503017,6.8802,145.28,145.26,0.04615701]
[1749815503422,2.65259376,145.27,145.26,0.04615701]
[1749815503910,6.8802,145.28,145.26,0.04615701]
[1749815505125,6.8805,145.27,145.26,0.04615701]
[1749815507526,12.77549245,145.27,145.26,0.04615701]
[1749815511324,6.8805,145.27,145.26,0.04615701]
[1749815511519,12.79437493,145.27,145.26,0.04615701]
[1749815512426,6.8805,145.27,145.26,0.04615701]
[1749815516719,12.79873165,145.27,145.26,0.04615701]
[1749815519329,6.8818,145.25,145.23,6.885]
[1749815519526,4.99176174,145.27,145.19,41.7446]
[1749815519726,6.8826,145.23,145.2,6.8836]
[1749815520029,4.99176174,145.25,145.19,34.96]
[1749815520232,6.92744891,145.23,145.21,0.05247212]
[1749815520621,5.03671065,145.23,145.13,34.96]
[1749815520822,6.8845,145.19,145.13,34.96]
[1749815521321,41.30941286,145.24,145.15,6.885]
[1749815521521,10.91399226,145.23,145.15,6.885]
[1749815521823,0.04904863,145.2,145.18,0.04748598]
[1749815522730,0.04904863,145.2,145.19,6.8843]
[1749815523529,0.04904863,145.2,145.19,13.7693]
[1749815526033,0.04904863,145.2,145.18,13.81708598]
[1749815526226,0.04904863,145.2,145.19,6.885]
[1749815526432,0.04904863,145.2,145.18,6.93208598]
[1749815526829,2.96625394,145.19,145.18,6.93208598]
[1749815527132,0.04904863,145.2,145.18,6.93208598]
[1749815527329,0.04904863,145.2,145.18,13.81708598]
[1749815527833,0.04904863,145.2,145.19,6.8843]
[1749815531335,0.04904863,145.2,145.18,6.93248598]
[1749815531730,0.04904863,145.2,145.18,0.04748598]
[1749815532132,0.04904863,145.2,145.18,6.93198598]
[1749815532636,0.04904863,145.2,145.18,0.04748598]
[1749815534635,6.93314863,145.2,145.18,0.04748598]
[1749815534833,0.04904863,145.2,145.18,0.04748598]
[1749815535035,6.8843,145.19,145.18,0.04748598]
[1749815535233,17.81192344,145.19,145.18,0.04748598]
[1749815535634,17.81244178,145.19,145.18,0.04748598]
[1749815536137,12.82068004,145.19,145.18,0.04748598]
[1749815536534,6.93304863,145.2,145.18,0.04748598]
[1749815537242,6.8843,145.19,145.18,0.04748598]
[1749815539744,12.82470646,145.19,145.18,0.04748598]
[1749815543042,6.8843,145.19,145.18,0.04748598]
[1749815545342,41.89304863,145.2,145.18,0.04748598]
[1749815546745,6.8843,145.19,145.18,0.04748598]
[1749815548845,9.85364121,145.19,145.18,0.04748598]
[1749815549050,6.8843,145.19,145.18,0.04748598]
[1749815549756,9.85341687,145.19,145.18,0.04748598]
[1749815549955,6.8856,145.17,145.14,6.885]
[1749815550454,6.8856,145.17,145.15,13.7709]
[1749815550947,6.8856,145.17,145.15,13.82224742]
[1749815550948,6.93639188,145.17,145.15,13.82224742]
[1749815551253,0.05079188,145.17,145.16,6.8857]
[1749815551954,0.05079188,145.17,145.15,6.93724742]
[1749815552247,0.05079188,145.17,145.15,13.82224742]
[1749815552548,0.05079188,145.17,145.15,0.05134742]
[1749815552753,5.03002352,145.17,145.1,37.253]
[1749815552947,6.887,145.14,145.1,37.253]
[1749815553145,34.96,145.16,145.11,6.8878]
[1749815553345,4.97923164,145.15,145.1,34.96]
[1749815553551,9.85288701,145.14,145.1,34.96]
[1749815553748,0.0501123,145.13,145.11,6.94010589]
[1749815553952,0.0501123,145.13,145.11,0.05240589]
[1749815554253,0.0501123,145.13,145.12,11.86683164]
[1749815555142,0.0501123,145.13,145.12,18.75183164]
[1749815555349,6.8854,145.17,145.14,6.8862]
[1749815555641,34.96,145.19,145.12,11.86423164]
[1749815555841,6.8853,145.17,145.14,6.8864]
[1749815556442,6.8859,145.16,145.14,0.05295298]
[1749815557259,6.93212019,145.17,145.14,6.93935298]
[1749815558652,0.04672019,145.17,145.15,6.8861]
[1749815558850,0.04672019,145.17,145.14,0.05295298]
[1749815559153,0.04672019,145.17,145.15,6.8862]
[1749815560956,6.93192019,145.17,145.15,6.8862]
[1749815561452,0.04672019,145.17,145.15,6.8862]
[1749815562961,6.93202019,145.17,145.15,6.8862]
[1749815564266,6.93202019,145.17,145.14,6.93945298]
[1749815564267,6.8857,145.16,145.14,6.93945298]
[1749815565158,6.93222019,145.17,145.14,6.93945298]
[1749815565363,5.93698565,145.16,145.14,6.93945298]
[1749815565556,0.04672019,145.17,145.14,6.93945298]
[1749815565862,12.82187547,145.16,145.14,6.93945298]
[1749815566060,0.04672019,145.17,145.14,6.93945298]
[1749815566365,5.93590142,145.16,145.14,0.05295298]
[1749815566554,0.04672019,145.17,145.14,0.05295298]
[1749815566752,6.8862,145.15,145.14,0.05295298]
[1749815567962,12.821158,145.15,145.14,0.05295298]
[1749815570066,6.888,145.12,145.1,41.8483]
[1749815570961,6.93697006,145.12,145.1,41.89787824]
[1749815571863,0.04897006,145.12,145.1,41.89787824]
[1749815572969,6.93657006,145.12,145.1,41.89787824]
[1749815574172,0.04897006,145.12,145.1,41.89787824]
[1749815574373,0.04897006,145.12,145.11,6.8881]
[1749815574571,5.91843743,145.16,145.1,39.98880988]
[1749815574868,34.96,145.19,145.13,11.86423164]
[1749815575067,8.87601019,145.18,145.14,6.8863]
[1749815575269,8.87601019,145.18,145.14,13.7713]
[1749815575270,5.91906893,145.17,145.14,13.7713]
[1749815575459,0.04837032,145.17,145.15,13.7709]
[1749815578974,0.04837032,145.17,145.15,6.8859]
[1749815579372,0.04837032,145.17,145.16,11.86493164]
[1749815580070,0.04837032,145.17,145.16,6.8857]
[1749815582382,0.04837032,145.17,145.16,11.86493164]
[1749815582570,0.04837032,145.17,145.16,11.86342259]
[1749815584480,5.91615369,145.22,145.19,4.97772259]
[1749815584677,6.8822,145.24,145.19,4.97772259]
[1749815584978,5.91659998,145.23,145.19,4.97772259]
[1749815585278,0.04669674,145.22,145.2,6.93439945]
[1749815585479,0.04669674,145.22,145.2,0.05099945]
[1749815586374,0.04669674,145.22,145.2,6.93459945]
[1749815586576,5.92665743,145.21,145.2,0.05099945]
[1749815586788,13.86319731,145.21,145.15,39.91772259]
[1749815587073,6.8845,145.19,145.15,39.91772259]
[1749815587676,0.04812957,145.18,145.16,6.92934624]
[1749815589080,6.93292957,145.18,145.16,6.92934624]
[1749815589974,0.04812957,145.18,145.16,6.92934624]
[1749815590782,6.93312957,145.18,145.16,6.92934624]
[1749815592379,0.04812957,145.18,145.16,6.92934624]
[1749815592982,6.93302957,145.18,145.16,6.92934624]
[1749815593283,0.04812957,145.18,145.16,0.04384624]
[1749815593983,6.8852,145.17,145.16,0.04384624]
[1749815594280,0.04812957,145.18,145.16,0.04384624]